bitfinex-derivatives/quotes_BNBF0:USTF0_20251203
["timestamp","ask_amount","ask_price","bid_price","bid_amount"]
[1764763578576,1.65962451,900.07,898.99,1.016]
[1764763578776,1.65962451,900.07,899.0,0.69473432]
[1764763578973,1.65962451,900.07,899.01,0.69473432]
[1764763579170,1.65962451,900.07,898.99,1.016]
[1764763579171,1.65962451,900.07,899.02,0.69473432]
[1764763579374,1.65962451,900.08,898.99,1.016]
[1764763579572,1.65962451,900.3,899.0,0.69467684]
[1764763579875,1.65962451,900.3,899.01,0.69467684]
[1764763580076,1.65962451,900.3,899.02,0.69467684]
[1764763580271,1.65962451,900.3,899.03,0.69467684]
[1764763580474,1.65962451,900.3,899.04,0.69467684]
[1764763580673,1.65962451,900.3,899.05,0.69467684]
[1764763580976,1.65962451,900.3,899.06,0.69467684]
[1764763581173,1.65962451,900.3,899.07,0.69467684]
[1764763581372,1.65962451,900.3,899.08,0.69467684]
[1764763581575,1.65962451,900.3,899.09,0.69467684]
[1764763581774,1.65962451,900.3,899.1,0.69467684]
[1764763581972,1.65962451,900.3,899.11,0.69467684]
[1764763582177,1.65962451,900.3,899.12,0.69467684]
[1764763582378,1.65962451,900.3,899.13,0.69467684]
[1764763582579,1.65962451,900.3,899.14,0.69467684]
[1764763582775,1.65962451,900.3,899.15,0.69467684]
[1764763582984,1.65962451,900.3,899.16,0.69467684]
[1764763583178,1.65962451,900.3,899.17,0.69467684]
[1764763583377,1.65962451,900.3,899.18,0.69467684]
[1764763583680,1.65962451,900.3,899.19,0.69467684]
[1764763583882,1.65962451,900.3,899.2,0.69467684]
[1764763584078,1.65962451,900.3,899.21,0.69467684]
[1764763584382,1.65962451,900.3,899.22,0.69467684]
[1764763584589,1.65962451,900.3,898.99,1.016]
[1764763584785,1.65962451,900.24,899.0,0.69506411]
[1764763584985,2.77801101,900.95,898.99,1.016]
[1764763584986,1.65962451,900.17,899.01,0.69506411]
[1764763585287,1.65962451,900.17,899.02,0.69506411]
[1764763585582,1.65962451,900.17,899.03,0.69506411]
[1764763585783,1.65962451,900.17,899.04,0.69506411]
[1764763585984,1.65962451,900.16,899.05,0.69506411]
[1764763586186,1.65962451,900.16,899.06,0.69506411]
[1764763586385,1.65962451,900.16,899.07,0.69506411]
[1764763586585,1.65962451,900.16,899.08,0.69506411]
[1764763586786,1.65962451,900.13,898.99,1.016]
[1764763586983,1.65962451,900.14,899.0,0.69524725]
[1764763587186,1.65962451,900.14,899.01,0.69524725]
[1764763587387,1.65962451,900.14,899.02,0.69524725]
[1764763587585,1.65962451,900.14,898.99,1.016]
[1764763587783,1.65962451,900.08,898.99,1.016]
[1764763588287,1.65962451,900.09,898.99,1.016]
[1764763589683,1.65962451,900.04,898.99,1.016]
[1764763590283,1.65962451,900.05,898.99,1.016]
[1764763590485,1.65962451,900.04,898.99,1.016]
[1764763591289,1.65962451,899.95,898.99,1.016]
[1764763593292,1.65962451,899.96,898.99,1.016]
[1764763593492,1.65962451,899.95,898.99,1.016]
[1764763594391,1.65962451,899.94,898.99,1.016]
[1764763595293,1.65962451,899.95,898.99,1.016]
[1764763595588,2.77801101,900.59,898.99,1.016]
[1764763595589,1.65962451,899.94,898.99,1.016]
[1764763597390,1.65962451,899.87,898.99,1.016]
[1764763598796,1.65962451,899.84,898.99,1.016]
[1764763599792,1.65962451,899.81,898.99,1.016]
[1764763600395,1.65962451,899.82,898.99,1.016]
[1764763601098,1.65962451,899.8,898.99,1.016]
[1764763601299,1.65962451,899.75,898.99,1.016]
[1764763601496,1.65962451,899.74,898.99,1.016]
[1764763601994,1.65962451,899.71,898.99,1.016]
[1764763602298,1.65962451,899.72,898.99,1.016]
[1764763603302,1.65962451,899.73,898.99,1.016]
[1764763604401,1.65962451,899.75,898.99,1.016]
[1764763605295,1.65962451,899.76,898.99,1.016]
[1764763606296,2.77801101,900.41,898.99,1.016]
[1764763606297,1.65962451,899.77,898.99,1.016]
[1764763607403,1.65962451,899.79,898.99,1.016]
[1764763607599,1.65962451,899.79,898.96,1.072]
[1764763608012,1.65962451,899.79,898.23,0.81857086]
[1764763608305,1.65962451,899.81,898.24,0.69417595]
[1764763608498,1.65962451,899.8,898.25,0.69417595]
[1764763608699,1.65962451,899.79,898.26,0.69417595]
[1764763609002,1.65962451,899.79,898.27,0.69417595]
[1764763609202,1.65962451,899.8,898.28,0.69417595]
[1764763609400,1.65962451,899.8,898.29,0.69417595]
[1764763609703,1.65962451,899.79,898.3,1.88517595]
[1764763609909,1.65962451,899.77,898.31,0.69417595]
[1764763610100,1.65962451,899.77,898.32,0.69417595]
[1764763610298,1.65962451,899.78,898.33,0.69417595]
[1764763610504,1.65962451,899.72,898.34,0.69417595]
[1764763610704,2.77801101,900.39,898.3,1.191]
[1764763610705,1.65962451,899.64,898.3,1.191]
[1764763611100,1.65962451,899.61,898.3,1.191]
[1764763611402,1.65962451,899.64,898.3,1.191]
[1764763611903,1.65962451,899.64,898.31,0.817]
[1764763613200,1.65962451,899.66,898.31,0.817]
[1764763614406,1.65962451,899.62,898.31,0.817]
[1764763615405,1.65962451,899.64,898.31,0.817]
[1764763616502,1.65962451,899.66,898.31,0.817]
[1764763617408,1.65962451,899.67,898.31,0.817]
[1764763619306,1.65962451,899.68,898.31,0.817]
[1764763619507,1.65962451,899.67,898.31,0.817]
[1764763619713,1.65962451,899.66,898.31,0.817]
[1764763620412,1.65962451,899.65,898.31,0.817]
[1764763622313,1.65962451,899.64,898.31,0.817]
[1764763622518,1.65962451,899.65,898.31,0.817]
[1764763623212,1.65962451,899.63,898.31,0.817]
[1764763623437,1.65962451,899.64,898.31,0.817]
[1764763624219,1.65962451,899.63,898.31,0.817]
[1764763624416,1.65962451,899.64,898.31,0.817]
[1764763625423,1.65962451,899.63,898.31,0.817]
[1764763627324,1.65962451,899.62,898.31,0.817]
[1764763628223,1.65962451,899.61,898.31,0.817]
[1764763629126,1.65962451,899.62,898.31,0.817]
[1764763629822,1.65962451,899.64,898.31,0.817]
[1764763631221,1.65962451,899.63,898.31,0.817]
[1764763632527,1.65962451,899.66,898.32,0.69216262]
[1764763632726,1.65962451,899.76,898.33,0.69216262]
[1764763632936,1.65962451,899.77,898.31,0.817]
[1764763633227,1.65962451,899.77,898.32,0.69216166]
[1764763633426,2.77801101,900.41,898.31,0.817]
[1764763633427,1.65962451,899.78,898.33,0.69216166]
[1764763633624,1.65962451,899.78,898.34,0.69216166]
[1764763633822,1.65962451,899.78,898.35,0.69216166]
[1764763634124,1.65962451,899.78,898.31,0.817]
[1764763634324,1.65962451,899.77,898.32,0.69217928]
[1764763634525,1.65962451,899.77,898.33,0.69217928]
[1764763634726,1.65962451,899.77,898.34,0.69217928]
[1764763634926,1.65962451,899.77,898.35,0.69217928]
[1764763635127,1.65962451,899.77,898.36,0.69217928]
[1764763635329,1.65962451,899.76,898.31,0.817]
[1764763635523,1.65962451,899.76,898.32,0.69238452]
[1764763635726,1.65962451,899.76,898.33,0.69238452]
[1764763635926,1.65962451,899.76,898.34,0.69238452]
[1764763636227,1.65962451,899.75,898.35,0.69238452]
[1764763636423,1.65962451,899.75,898.36,0.69238452]
[1764763636627,1.65962451,899.74,898.31,0.817]
[1764763636828,1.65962451,899.74,898.32,0.6925101]
[1764763637126,1.65962451,899.74,898.33,0.6925101]
[1764763637428,1.65962451,899.73,898.34,0.6925101]
[1764763637623,1.65962451,899.73,898.35,0.6925101]
[1764763637828,1.65962451,899.73,898.36,0.6925101]
[1764763638025,1.65962451,899.73,898.31,0.817]
[1764763638329,1.65962451,899.72,898.32,0.69260852]
[1764763638530,1.65962451,899.72,898.33,0.69260852]
[1764763638729,1.65962451,899.72,898.31,0.817]
[1764763638730,1.65962451,899.69,898.34,0.69260852]
[1764763638938,1.65962451,899.69,898.31,0.817]
[1764763639128,1.65962451,899.69,898.32,0.69278939]
[1764763639328,1.65962451,899.68,898.33,0.69278939]
[1764763639529,2.77801101,900.33,898.31,0.817]
[1764763639530,1.65962451,899.67,898.31,0.817]
[1764763639830,1.65962451,899.66,898.32,0.69295552]
[1764763640027,1.65962451,899.66,898.31,0.817]
[1764763640330,1.65962451,899.64,898.33,1.173]
[1764763641233,1.65962451,899.62,898.34,0.69337859]
[1764763641433,1.65962451,899.62,898.33,1.173]
[1764763641628,1.65962451,899.62,898.34,0.69341246]
[1764763641827,1.65962451,899.63,898.35,0.6933874]
[1764763642130,1.65962451,899.63,898.33,1.173]
[1764763642131,1.65962451,899.75,898.36,0.6933874]
[1764763642327,2.77801101,900.39,898.33,1.173]
[1764763642328,1.65962451,899.73,898.37,0.6933874]
[1764763642530,1.65962451,899.72,898.38,0.6933874]
[1764763642730,1.65962451,899.72,898.39,0.6933874]
[1764763642930,1.65962451,899.72,898.33,1.173]
[1764763642931,1.65962451,899.72,898.4,0.6933874]
[1764763643232,1.65962451,899.71,898.41,0.6933874]
[1764763643431,1.65962451,899.7,898.42,0.6933874]
[1764763643633,1.65962451,899.7,898.43,0.6933874]
[1764763643936,1.65962451,899.7,898.33,1.173]
[1764763643937,1.65962451,899.7,898.44,0.6933874]
[1764763644130,1.65962451,899.7,898.45,0.6933874]
[1764763644340,1.65962451,899.68,898.46,0.6933874]
[1764763644528,1.65962451,899.68,898.47,0.6933874]
[1764763644728,1.65962451,899.68,898.48,0.6933874]
[1764763645033,1.65962451,899.68,898.49,0.6933874]
[1764763645226,1.65962451,899.68,898.5,0.6933874]
[1764763645430,1.65962451,899.67,898.51,0.6933874]
[1764763645629,1.65962451,899.66,898.52,0.6933874]
[1764763645828,1.65962451,899.66,898.33,1.173]
[1764763646028,1.65962451,899.66,898.34,0.69410984]
[1764763646227,1.65962451,899.66,898.35,0.69410984]
[1764763646428,1.65962451,899.64,898.36,0.69410984]
[1764763646629,1.65962451,899.64,898.37,0.69410984]
[1764763646834,1.65962451,899.65,898.38,0.69410984]
[1764763647030,1.65962451,899.65,898.39,0.69410984]
[1764763647235,1.65962451,899.64,898.4,0.69410984]
[1764763647534,1.65962451,899.64,898.41,0.69410984]
[1764763647733,1.65962451,899.64,898.42,0.69410984]
[1764763648030,1.65962451,899.64,898.43,0.69410984]
[1764763648229,2.77801101,900.29,898.33,1.173]
[1764763648230,1.65962451,899.65,898.44,0.69410984]
[1764763648443,0.01022959,900.54,898.53,0.81857086]
[1764763648444,1.65962451,899.89,898.53,0.81857086]
[1764763648635,1.65962451,899.89,898.54,0.69410984]
[1764763648835,1.65962451,899.89,898.55,0.69410984]
[1764763649041,1.65962451,899.89,898.56,0.69410984]
[1764763649331,1.65962451,899.89,898.57,0.69410984]
[1764763649530,1.65962451,899.9,898.58,0.69410984]
[1764763649732,1.65962451,899.94,898.59,1.5126807]
[1764763649935,1.65962451,899.94,898.6,0.69410984]
[1764763650132,1.65962451,899.94,898.61,0.69410984]
[1764763650331,1.65962451,899.93,898.62,0.69410984]
[1764763650534,1.65962451,899.93,898.63,0.69410984]
[1764763650732,1.65962451,899.93,898.64,0.69410984]
[1764763650932,1.65962451,899.93,898.65,0.69410984]
[1764763651133,1.65962451,899.93,898.66,0.69410984]
[1764763651336,1.65962451,899.93,898.67,0.69410984]
[1764763651635,1.65962451,899.93,898.68,0.69410984]
[1764763651836,1.65962451,899.93,898.69,0.69410984]
[1764763652132,1.65962451,899.93,898.7,0.69410984]
[1764763652336,1.65962451,899.93,898.71,0.69410984]
[1764763652537,1.65962451,899.93,898.72,0.69410984]
[1764763652738,1.65962451,899.93,898.73,0.69410984]
[1764763652938,1.65962451,899.93,898.74,0.69410984]
[1764763653240,1.65962451,899.93,898.75,0.69410984]
[1764763653438,1.65962451,899.92,898.76,0.69410984]
[1764763653738,1.65962451,899.92,898.77,0.69410984]
[1764763653935,1.65962451,899.92,898.78,0.69410984]
[1764763654140,1.65962451,899.93,898.79,0.69410984]
[1764763654439,1.65962451,899.92,898.8,0.69410984]
[1764763654640,1.65962451,899.92,898.81,0.69410984]
[1764763654838,1.65962451,899.92,898.82,0.69410984]
[1764763655036,1.65962451,899.92,898.83,0.69410984]
[1764763655237,1.65962451,899.92,898.84,0.69410984]
[1764763655441,1.65962451,899.92,898.85,0.69410984]
[1764763655742,1.65962451,899.92,898.86,0.69410984]
[1764763656041,1.65962451,899.92,898.87,0.69410984]
[1764763656236,1.65962451,899.91,898.88,0.69410984]
[1764763656442,1.65962451,899.91,898.89,0.69410984]
[1764763656641,1.65962451,899.91,898.9,0.69410984]
[1764763656841,1.65962451,899.91,898.91,0.69410984]
[1764763657040,1.65962451,899.91,898.92,0.69410984]
[1764763657241,1.65962451,899.91,898.93,0.69658475]
[1764763657538,1.65962451,899.91,898.63,0.81857086]
[1764763657738,1.65962451,899.91,898.64,0.69636946]
[1764763657941,1.65962451,899.91,898.65,0.69636946]
[1764763658142,1.65962451,899.91,898.66,0.69636946]
[1764763658339,1.65962451,899.91,898.67,0.69636946]
[1764763658541,1.65962451,899.91,898.68,0.69636946]
[1764763658741,1.65962451,899.91,898.69,0.69636946]
[1764763658939,1.65962451,899.91,898.7,0.69636946]
[1764763659138,1.65962451,899.91,898.71,0.69636946]
[1764763659442,1.65962451,899.91,898.72,0.69636946]
[1764763659638,1.65962451,899.91,898.73,0.69636946]
[1764763659843,0.0103179,900.81,898.33,1.173]
[1764763659844,1.65962451,899.89,898.74,0.69636946]
[1764763660144,1.65962451,899.9,898.75,0.69636946]
[1764763660341,1.65962451,899.91,898.76,0.69636946]
[1764763660544,1.65962451,899.91,898.77,0.69636946]
[1764763660846,1.65962451,899.9,898.78,0.69636946]
[1764763661140,1.65962451,899.93,898.79,0.69636946]
[1764763661340,1.65962451,899.94,898.8,0.69636946]
[1764763661544,1.65962451,899.94,898.81,0.69636946]
[1764763661740,1.65962451,899.95,898.82,0.69636946]
[1764763661940,1.65962451,899.95,898.83,0.69636946]
[1764763662148,1.65962451,899.98,898.84,0.69636946]
[1764763662341,1.65962451,899.98,898.85,0.69636946]
[1764763662541,1.65962451,899.98,898.86,0.69636946]
[1764763662745,1.65962451,899.98,898.87,0.69636946]
[1764763662943,1.65962451,899.98,898.88,0.69636946]
[1764763663140,1.65962451,899.98,898.89,0.69636946]
[1764763663350,1.65962451,899.99,898.9,0.69636946]
[1764763663648,1.65962451,900.0,898.9,1.109]
[1764763664351,1.65962451,900.01,898.9,1.109]
[1764763665548,1.65962451,900.02,898.9,1.109]
[1764763666446,1.65962451,900.03,898.9,1.109]
[1764763667348,1.65962451,900.04,898.9,1.109]
[1764763668348,1.65962451,900.05,898.9,1.109]
[1764763669353,1.65962451,900.06,898.9,1.109]
[1764763669751,1.65962451,900.0,898.9,1.109]
[1764763670053,2.77801101,900.71,898.9,1.109]
[1764763670054,1.65962451,899.97,898.9,1.109]
[1764763671353,1.65962451,899.98,898.9,1.109]
[1764763672355,1.65962451,899.98,898.91,1.112]
[1764763676458,1.65962451,899.99,898.91,1.112]
[1764763679458,1.65962451,899.98,898.91,1.112]
[1764763679858,1.65962451,900.03,898.91,1.112]
[1764763682358,1.65962451,900.02,898.91,1.112]
[1764763683562,1.65962451,900.01,898.91,1.112]
[1764763684060,1.65962451,900.02,898.91,1.112]
[1764763684357,1.65962451,900.01,898.91,1.112]
[1764763684556,0.19347306,899.75,898.91,1.112]
[1764763688062,0.19347306,899.75,898.92,0.69708853]
[1764763688261,0.19347306,899.75,898.93,0.69708853]
[1764763688562,0.19347306,899.75,898.91,1.112]
[1764763688761,0.19347306,899.75,898.92,0.69710947]
[1764763688962,0.19347306,899.75,898.93,0.69710947]
[1764763689259,0.19347306,899.75,898.94,0.69710947]
[1764763689461,0.19347306,899.75,898.95,0.69710947]
[1764763689658,0.19347306,899.75,898.96,0.69710947]
[1764763689858,0.19347306,899.75,898.97,0.69710947]
[1764763690059,0.19347306,899.75,898.98,0.69710947]
[1764763690259,0.19347306,899.75,898.99,0.69710947]
[1764763690458,0.19347306,899.75,898.91,1.112]
[1764763690661,0.19347306,899.75,898.92,0.69763234]
[1764763690862,0.19347306,899.75,898.93,0.69763234]
[1764763691063,0.19347306,899.75,898.94,0.69763234]
[1764763691357,0.19347306,899.75,898.95,0.69763234]
[1764763691558,0.19347306,899.75,898.96,0.69763234]
[1764763691762,0.19347306,899.75,898.97,0.69763234]
[1764763692057,0.19347306,899.75,898.98,0.69763234]
[1764763692257,0.19347306,899.75,898.99,0.69763234]
[1764763692458,0.19347306,899.75,899.0,0.69763234]
[1764763692660,0.19347306,899.75,898.91,1.112]
[1764763692861,0.19347306,899.75,899.0,1.018]
[1764763695064,0.19347306,899.75,899.01,0.69783456]
[1764763695260,0.19347306,899.75,899.0,1.018]
[1764763695561,0.19347306,899.75,899.01,0.69785514]
[1764763695762,0.19347306,899.75,899.0,1.018]
[1764763695960,0.19347306,899.75,899.01,0.69786994]
[1764763696263,0.19347306,899.75,899.0,1.018]
[1764763696464,0.19347306,899.75,899.01,0.69789134]
[1764763696665,0.19347306,899.75,899.0,1.018]
[1764763696965,0.19347306,899.75,899.01,0.69789134]
[1764763697165,0.19347306,899.75,899.0,1.018]
[1764763697359,0.19347306,899.75,899.01,0.69791275]
[1764763697565,0.19347306,899.75,899.0,1.018]
[1764763697763,0.19347306,899.75,899.01,0.69791281]
[1764763698062,0.19347306,899.75,899.0,1.018]
[1764763698260,0.19347306,899.75,899.01,0.69791205]
[1764763698562,0.19347306,899.75,899.02,0.69791205]
[1764763698762,0.19347306,899.75,899.0,1.018]
[1764763698966,0.19347306,899.75,899.01,0.6978993]
[1764763699165,0.19347306,899.75,899.02,0.6978993]
[1764763699362,0.19347306,899.75,899.0,1.018]
[1764763699566,0.19347306,899.75,899.01,0.69789941]
[1764763699766,0.19347306,899.75,899.02,0.69789941]
[1764763700067,0.19347306,899.75,899.03,0.69789941]
[1764763700367,0.19347306,899.75,899.04,0.69789941]
[1764763700568,0.19347306,899.75,899.0,1.018]
[1764763700768,0.19347306,899.75,899.01,0.69813919]
[1764763700967,0.19347306,899.75,899.02,0.69813919]
[1764763701168,0.19347306,899.75,899.03,0.69813919]
[1764763701463,0.19347306,899.75,899.04,0.69813919]
[1764763701663,0.19347306,899.75,899.05,0.69813919]
[1764763701863,0.19347306,899.75,899.06,0.69813919]
[1764763702067,0.19347306,899.75,899.07,0.69813919]
[1764763702268,0.19347306,899.75,899.08,0.69813919]
[1764763702469,0.19347306,899.75,899.0,1.018]
[1764763702470,0.19347306,899.75,899.09,0.69813919]
[1764763702664,0.19347306,899.75,899.1,0.69813919]
[1764763702868,0.19347306,899.75,899.0,1.018]
[1764763702869,0.19347306,899.75,899.11,0.69813919]
[1764763703069,0.19347306,899.75,899.12,0.69813919]
[1764763703269,0.19347306,899.75,899.13,0.69813919]
[1764763703466,0.19347306,899.75,899.14,0.69813919]
[1764763703665,0.19347306,899.75,899.15,0.69813919]
[1764763703869,0.19347306,899.75,899.16,0.69813919]
[1764763704068,0.19347306,899.75,899.0,1.018]
[1764763704268,0.19347306,899.75,899.01,0.6989916]
[1764763704468,0.19347306,899.75,899.02,0.6989916]
[1764763704667,0.19347306,899.75,899.03,0.6989916]
[1764763704866,0.19347306,899.75,899.04,0.6989916]
[1764763705166,0.19347306,899.75,899.05,0.6989916]
[1764763705366,0.19347306,899.75,899.06,0.6989916]
[1764763705569,0.19347306,899.75,899.07,0.6989916]
[1764763705767,0.19347306,899.75,899.08,0.6989916]
[1764763705971,0.19347306,899.75,899.09,0.6989916]
[1764763706165,0.19347306,899.75,899.1,0.6989916]
[1764763706370,0.19347306,899.75,899.11,0.6989916]
[1764763706571,0.19347306,899.75,899.12,0.6989916]
[1764763706771,0.19347306,899.75,899.13,0.6989916]
[1764763706971,0.19347306,899.75,899.14,0.6989916]
[1764763707170,0.19347306,899.75,899.15,0.6989916]
[1764763707472,0.19347306,899.75,899.0,1.018]
[1764763707473,0.19347306,899.75,899.16,0.6989916]
[1764763707773,0.19347306,899.75,899.17,0.6989916]
[1764763707970,0.19347306,899.75,899.0,1.018]
[1764763707971,0.19347306,899.75,899.18,0.6989916]
[1764763708171,0.19347306,899.75,899.19,0.6989916]
[1764763708371,0.19347306,899.75,899.2,0.6989916]
[1764763708574,0.19347306,899.75,899.21,0.6989916]
[1764763708871,0.19347306,899.75,899.22,0.6989916]
[1764763709071,0.19347306,899.75,899.23,0.6989916]
[1764763709270,0.19347306,899.75,899.24,0.6989916]
[1764763709576,0.19347306,899.75,899.25,0.6989916]
[1764763709768,0.19347306,899.75,899.26,0.6989916]
[1764763710073,0.19347306,899.75,899.0,1.018]
[1764763710272,0.19347306,899.75,899.01,0.70005154]
[1764763710474,0.19347306,899.75,899.02,0.70005154]
[1764763710670,0.19347306,899.75,899.03,0.70005154]
[1764763710974,0.19347306,899.75,899.04,0.70005154]
[1764763711171,0.19347306,899.75,899.05,0.70005154]
[1764763711374,0.19347306,899.75,899.06,0.70005154]
[1764763711574,0.19347306,899.75,899.07,0.70005154]
[1764763711774,0.19347306,899.75,899.08,0.70005154]
[1764763711974,0.19347306,899.75,899.09,0.70005154]
[1764763712173,0.19347306,899.75,899.1,0.70005154]
[1764763712476,0.19347306,899.75,899.11,0.70005154]
[1764763712675,0.19347306,899.75,899.12,0.70005154]
[1764763712879,0.19347306,899.75,899.13,0.70005154]
[1764763713176,0.19347306,899.75,899.14,0.70005154]
[1764763713374,0.19347306,899.75,899.15,0.70005154]
[1764763713577,0.19347306,899.75,899.16,0.70005154]
[1764763713779,0.19347306,899.75,899.17,0.70005154]
[1764763713976,0.19347306,899.75,899.18,0.70005154]
[1764763714178,0.19347306,899.75,899.19,0.70005154]
[1764763714474,0.19347306,899.75,899.2,0.70005154]
[1764763714675,0.19347306,899.75,899.21,0.70005154]
[1764763714875,0.19347306,899.75,899.0,1.018]
[1764763715078,0.19347306,899.75,899.01,0.69924419]
[1764763715374,0.19347306,899.75,899.02,0.69924419]
[1764763715675,0.19347306,899.75,899.03,0.69924419]
[1764763715978,0.19347306,899.75,899.04,0.69924419]
[1764763716174,0.19347306,899.75,899.05,0.69924419]
[1764763716379,0.19347306,899.75,899.06,0.69924419]
[1764763716578,0.19347306,899.75,899.07,0.69924419]
[1764763716775,0.19347306,899.75,899.08,0.69924419]
[1764763716973,0.19347306,899.75,899.09,0.69924419]
[1764763717278,0.19347306,899.75,899.1,0.69924419]
[1764763717481,0.19347306,899.75,899.11,0.69924419]
[1764763717777,0.19347306,899.75,899.12,0.69924419]
[1764763717975,0.19347306,899.75,899.13,0.69924419]
[1764763718174,0.19347306,899.75,899.14,0.69924419]
[1764763718376,0.19347306,899.75,899.15,0.69924419]
[1764763718580,0.19347306,899.75,899.16,0.69924419]
[1764763718779,0.19347306,899.75,899.17,0.69924419]
[1764763718977,0.19347306,899.75,899.18,0.69924419]
[1764763719279,0.19347306,899.75,899.19,0.69924419]
[1764763719477,0.19347306,899.75,899.2,0.69924419]
[1764763719676,0.19347306,899.75,899.21,0.69924419]
[1764763719881,0.19347306,899.75,899.22,0.69924419]
[1764763720075,0.19347306,899.75,899.23,0.69924419]
[1764763720279,0.19347306,899.75,899.24,0.69924419]
[1764763720477,0.19347306,899.75,899.25,0.69924419]
[1764763720681,0.19347306,899.75,899.26,0.69924419]
[1764763720881,0.19347306,899.75,899.13,0.865]
[1764763720882,0.19347306,899.75,899.27,0.69924419]
[1764763721078,0.19347306,899.75,899.13,0.865]
[1764763721279,0.19347306,899.75,899.14,0.69893134]
[1764763721478,0.19347306,899.75,899.15,0.69893134]
[1764763721681,0.19347306,899.75,899.16,0.69893134]
[1764763721878,0.19347306,899.75,899.17,0.69893134]
[1764763722081,0.19347306,899.75,899.18,0.69893134]
[1764763722278,0.19347306,899.75,899.19,0.69893134]
[1764763722483,0.19347306,899.75,899.2,0.69893134]
[1764763722681,0.19347306,899.75,899.21,0.69893134]
[1764763722885,0.19347306,899.75,899.22,0.69893134]
[1764763723083,0.19347306,899.75,899.23,0.69893134]
[1764763723384,0.19347306,899.75,899.24,0.69893134]
[1764763723584,0.19347306,899.75,899.25,0.69893134]
[1764763723882,0.19347306,899.75,899.26,0.69893134]
[1764763724084,0.19347306,899.75,899.27,0.69893134]
[1764763724283,0.19347306,899.75,899.13,0.865]
[1764763724584,0.19347306,899.75,899.14,0.69865078]
[1764763724780,0.19347306,899.75,899.15,0.69865078]
[1764763724984,0.19347306,899.75,899.16,0.69865078]
[1764763725184,0.19347306,899.75,899.17,0.69865078]
[1764763725479,0.19347306,899.75,899.18,0.69865078]
[1764763725783,0.19347306,899.75,899.19,0.69865078]
[1764763726080,0.19347306,899.75,899.2,0.69865078]
[1764763726281,0.19347306,899.75,899.21,0.69865078]
[1764763726480,0.19347306,899.75,899.22,0.69865078]
[1764763726680,0.19347306,899.75,899.23,0.69865078]
[1764763726984,0.19347306,899.75,899.24,0.69865078]
[1764763727184,0.19347306,899.75,899.25,0.69865078]
[1764763727485,0.19347306,899.75,899.26,0.69865078]
[1764763727685,0.19347306,899.75,899.26,1.33]
[1764763742289,1.65962451,899.73,899.26,1.33]
[1764763742495,1.65962451,899.74,899.26,1.33]
[1764763746296,1.85309757,899.75,899.26,1.33]
[1764763747699,0.19347306,899.75,899.26,1.33]
[1764763756705,0.19347306,899.75,899.13,0.865]
[1764763757005,0.19347306,899.75,899.14,0.69748371]
[1764763757209,0.19347306,899.75,899.13,0.865]
[1764763757405,0.19347306,899.75,899.14,0.69747377]
[1764763757604,0.19347306,899.75,899.13,0.865]
[1764763757808,0.19347306,899.75,899.14,0.69747377]
[1764763758004,0.19347306,899.75,899.13,0.865]
[1764763758210,0.19347306,899.75,899.14,0.69747377]
[1764763758410,0.19347306,899.75,899.13,0.865]
[1764763758607,0.19347306,899.75,899.14,0.6974784]
[1764763758910,0.19347306,899.75,899.13,0.865]
[1764763759111,0.19347306,899.75,899.14,0.6974784]
[1764763759311,0.19347306,899.75,899.13,0.865]
[1764763759509,0.19347306,899.75,899.14,0.69749502]
[1764763759812,0.19347306,899.75,899.13,0.865]
[1764763760012,1.65962451,899.73,899.13,0.865]
[1764763760212,1.65962451,899.73,898.75,0.83045071]
[1764763760413,0.19347306,899.75,898.78,0.83045071]
[1764763760711,0.19347306,899.75,898.79,0.69758054]
[1764763760911,0.19347306,899.75,898.8,0.69758054]
[1764763761113,0.19347306,899.75,898.81,0.69758054]
[1764763761414,0.19347306,899.75,898.82,0.69758054]
[1764763761613,0.19347306,899.75,898.83,0.69758054]
[1764763761810,0.19347306,899.75,898.84,0.69758054]
[1764763762010,0.19347306,899.75,898.85,0.69758054]
[1764763762213,0.19347306,899.75,898.86,0.69758054]
[1764763762413,0.19347306,899.75,898.87,0.69758054]
[1764763762613,0.19347306,899.75,898.88,0.69758054]
[1764763762815,0.19347306,899.75,898.89,0.69758054]
[1764763763110,0.19347306,899.75,898.9,0.69758054]
[1764763763313,0.19347306,899.75,898.91,0.69758054]
[1764763763515,0.19347306,899.75,898.92,0.69758054]
[1764763763710,0.19347306,899.75,898.93,0.69758054]
[1764763763913,0.19347306,899.75,898.94,0.69758054]
[1764763764212,0.19347306,899.75,898.95,0.69758054]
[1764763764414,0.19347306,899.75,898.96,0.69758054]
[1764763764611,0.19347306,899.75,898.97,0.69758054]
[1764763764814,0.19347306,899.75,898.98,0.69758054]
[1764763765016,0.19347306,899.75,898.99,0.69758054]
[1764763765213,0.19347306,899.75,899.0,0.69758054]
[1764763765418,0.19347306,899.75,899.01,0.69758054]